bitfinex-derivatives/quotes_BTCF0:USTF0_20230701
["timestamp","ask_amount","ask_price","bid_price","bid_amount"]
[1688207839429,0.11769662,30516.0,30515.0,1.0875348]
[1688207839638,0.18274881,30516.0,30515.0,1.0875348]
[1688207841431,0.20241381,30516.0,30515.0,0.374268]
[1688207843439,2.20241381,30516.0,30515.0,0.374268]
[1688207844339,2.47387065,30516.0,30515.0,0.374268]
[1688207845136,2.38915346,30516.0,30515.0,0.374268]
[1688207845745,2.40882046,30516.0,30515.0,0.374268]
[1688207846336,2.40684351,30516.0,30515.0,0.374268]
[1688207846737,0.40684351,30516.0,30515.0,0.374268]
[1688207847838,0.13538667,30516.0,30515.0,0.374268]
[1688207856837,0.11571967,30516.0,30515.0,0.374268]
[1688207858051,0.11571967,30516.0,30515.0,0.39249769]
[1688207858237,0.11571967,30516.0,30515.0,0.41134714]
[1688207859038,0.11571967,30516.0,30515.0,0.39311745]
[1688207860058,0.11571967,30516.0,30515.0,0.41134714]
[1688207860247,0.11571967,30516.0,30515.0,0.39311745]
[1688207860953,0.11571967,30516.0,30515.0,0.374268]
[1688207861255,0.11571967,30516.0,30515.0,0.735068]
[1688207861646,0.11571967,30516.0,30515.0,0.75329769]
[1688207861847,0.11571967,30516.0,30515.0,0.735068]
[1688207863543,0.11571967,30516.0,30515.0,0.75391745]
[1688207864766,0.11571967,30516.0,30515.0,1.10851745]
[1688207865261,0.11571967,30516.0,30515.0,1.089668]
[1688207868268,0.13538667,30516.0,30515.0,0.735068]
[1688207870268,0.13538667,30516.0,30515.0,0.374268]
[1688207874067,0.13538667,30516.0,30515.0,0.019668]
[1688207874268,0.48998667,30516.0,30515.0,0.019668]
[1688207874851,0.48998667,30516.0,30514.0,0.3526]
[1688207875064,0.44556775,30515.0,30514.0,0.3516]
[1688207875261,0.82060417,30515.0,30514.0,0.3516]
[1688207875570,1.51524175,30515.0,30514.0,0.3516]
[1688207875754,1.61698205,30515.0,30514.0,0.3516]
[1688207875951,1.61698205,30515.0,30514.0,0.371268]
[1688207876562,1.88843889,30515.0,30514.0,0.371268]
[1688207876751,1.49550131,30515.0,30514.0,0.371268]
[1688207877863,1.39376101,30515.0,30514.0,0.371268]
[1688207879264,1.39376101,30515.0,30514.0,0.3516]
[1688207882165,1.39376101,30515.0,30514.0,0.371268]
[1688207882967,1.39376101,30515.0,30514.0,0.3516]
[1688207884659,1.04216101,30515.0,30514.0,0.3546]
[1688207884864,1.04216101,30515.0,30514.0,0.374268]
[1688207885360,1.14390051,30515.0,30514.0,0.374268]
[1688207885561,1.04216101,30515.0,30514.0,0.374268]
[1688207885763,1.14390051,30515.0,30514.0,0.374268]
[1688207887260,1.14390051,30515.0,30514.0,0.37419579]
[1688207888674,1.04216101,30515.0,30514.0,0.37419579]
[1688207893373,1.04216101,30515.0,30514.0,0.34919579]
[1688207893582,1.04216101,30515.0,30514.0,0.32952779]
[1688207895973,1.04216101,30515.0,30514.0,0.34919279]
[1688207901073,0.68136101,30515.0,30514.0,0.34919279]
[1688207901777,0.40990417,30515.0,30514.0,0.34919279]
[1688207903284,0.39023717,30515.0,30514.0,0.34919279]
[1688207904372,0.08853717,30515.0,30514.0,0.35579279]
[1688207904678,0.35432996,30516.0,30515.0,0.380864]
[1688207904883,0.35432996,30516.0,30515.0,0.733264]
[1688207905081,0.35432996,30516.0,30515.0,0.77034314]
[1688207905679,0.02676251,30516.0,30515.0,1.07154314]
[1688207906074,0.32756745,30517.0,30515.0,1.07154314]
[1688207906377,0.32756745,30517.0,30516.0,0.39311345]
[1688207906567,0.32756745,30517.0,30516.0,0.41134314]
[1688207907482,0.32756745,30517.0,30516.0,0.41794314]
[1688207907879,0.32753637,30517.0,30516.0,0.41794314]
[1688207908083,0.0847684,30517.0,30516.0,0.41794314]
[1688207908276,0.0847684,30518.0,30516.0,0.41794314]
[1688207908472,0.0847684,30517.0,30516.0,0.04449369]
[1688207908667,0.0847684,30517.0,30516.0,0.39909369]
[1688207908873,0.0847684,30518.0,30516.0,0.39909369]
[1688207909069,0.0847684,30517.0,30516.0,0.04449369]
[1688207909274,0.0847684,30518.0,30516.0,0.39971345]
[1688207909585,0.0847684,30517.0,30516.0,0.04511345]
[1688207909880,0.08477009,30518.0,30516.0,0.39971345]
[1688207910081,0.08477009,30517.0,30516.0,0.04511345]
[1688207910279,0.08463689,30517.0,30516.0,0.378864]
[1688207910470,0.04612323,30519.0,30516.0,0.39771345]
[1688207910673,0.04612323,30519.0,30518.0,0.371262]
[1688207911481,0.04612323,30519.0,30518.0,0.684362]
[1688207911786,0.04612323,30519.0,30518.0,0.70321145]
[1688207913090,0.04612323,30519.0,30518.0,0.684362]
[1688207913588,0.13089315,30519.0,30518.0,0.684362]
[1688207915985,0.13089215,30519.0,30518.0,0.684362]
[1688207916183,0.13089215,30519.0,30518.0,0.70321145]
[1688207916383,0.11123115,30519.0,30518.0,0.70321145]
[1688207917897,0.13089315,30519.0,30518.0,0.70321145]
[1688207918291,0.13089315,30519.0,30518.0,0.684362]
[1688207918487,0.11123115,30519.0,30518.0,0.684362]
[1688207919393,0.11108319,30519.0,30518.0,0.70321145]
[1688207920091,0.11108319,30519.0,30518.0,0.684362]
[1688207921308,0.11108319,30519.0,30518.0,0.70321145]
[1688207921803,0.11108319,30519.0,30518.0,0.72144114]
[1688207922415,0.11108319,30519.0,30518.0,0.70321145]
[1688207924108,0.11108319,30519.0,30518.0,0.72144114]
[1688207924699,0.11108319,30519.0,30518.0,0.70321145]
[1688207925120,0.11101659,30519.0,30518.0,0.70321145]
[1688207926302,0.11101659,30519.0,30518.0,0.684362]
[1688207928015,0.13067859,30519.0,30518.0,0.684362]
[1688207929016,0.43167859,30519.0,30518.0,0.684362]
[1688207931712,0.43167859,30519.0,30518.0,0.3516]
[1688207931917,0.43167859,30519.0,30518.0,0.371262]
[1688207934921,0.43167859,30519.0,30518.0,0.673962]
[1688207938618,0.43167859,30519.0,30518.0,0.67375496]
[1688207939119,0.43167859,30519.0,30518.0,0.37105496]
[1688207942330,0.43167859,30519.0,30518.0,0.68455496]
[1688207943329,0.41201659,30519.0,30518.0,0.68455496]
[1688207947622,0.43168059,30519.0,30518.0,0.68455496]
[1688207948028,0.41201659,30519.0,30518.0,0.68455496]
[1688207949032,0.41201659,30519.0,30518.0,1.04535496]
[1688207949233,0.41201659,30519.0,30518.0,1.06420441]
[1688207949835,0.41201659,30519.0,30518.0,1.0824341]
[1688207950043,0.11101659,30519.0,30518.0,1.0824341]
[1688207950426,0.11101659,30519.0,30518.0,1.06420441]
[1688207950427,0.50395417,30519.0,30518.0,1.06420441]
[1688207950625,0.50395417,30519.0,30518.0,1.0824341]
[1688207951132,0.50395417,30519.0,30518.0,1.06411658]
[1688207951323,0.50395417,30519.0,30518.0,1.08234627]
[1688207951724,0.50395417,30519.0,30518.0,1.06411658]
[1688207952943,0.50395417,30519.0,30518.0,1.08234627]
[1688207953126,0.50395417,30519.0,30518.0,1.06411658]
[1688207953438,0.11101659,30519.0,30518.0,1.06411658]
[1688207954146,0.11101659,30519.0,30518.0,1.08234627]
[1688207954442,0.11101659,30519.0,30518.0,1.04526713]
[1688207954644,0.11088872,30519.0,30518.0,1.04526713]
[1688207954842,0.11088872,30519.0,30518.0,1.08234627]
[1688207955146,0.11088872,30519.0,30518.0,1.06411658]
[1688207956050,0.11088872,30519.0,30518.0,1.08234627]
[1688207956239,0.11088872,30519.0,30518.0,1.06411658]
[1688207956441,0.11088872,30519.0,30518.0,1.08234627]
[1688207956945,0.11088872,30519.0,30518.0,1.06411658]
[1688207957339,0.11088872,30519.0,30518.0,1.08234627]
[1688207957539,0.11088872,30519.0,30518.0,1.06411658]
[1688207957847,0.11088872,30519.0,30518.0,1.08234627]
[1688207958044,0.11088872,30519.0,30518.0,1.06411658]
[1688207958241,0.13055272,30519.0,30518.0,0.68446713]
[1688207962655,0.13055272,30519.0,30518.0,0.70331658]
[1688207967156,0.13055272,30519.0,30518.0,0.70311619]
[1688207968041,0.4393347,30519.0,30518.0,0.70311619]
[1688207968352,0.52410462,30519.0,30518.0,0.70311619]
[1688207968553,0.50444062,30519.0,30518.0,0.70311619]
[1688207968846,0.11088872,30519.0,30518.0,0.70311619]
[1688207969851,0.11088872,30519.0,30518.0,0.72134588]
[1688207972552,0.11088872,30519.0,30518.0,1.08214588]
[1688207975650,0.4196707,30519.0,30518.0,1.08214588]
[1688207975853,0.50444062,30519.0,30518.0,1.08214588]
[1688207976850,0.57225479,30519.0,30518.0,1.08214588]
[1688207979665,0.17870289,30519.0,30518.0,1.08214588]
[1688207980259,0.57225479,30519.0,30518.0,1.08214588]
[1688207980754,0.17870289,30519.0,30518.0,1.08214588]
[1688207985258,0.17861527,30519.0,30518.0,1.08214588]
[1688207988167,0.17861527,30519.0,30518.0,1.06391619]
[1688207988368,0.17861527,30519.0,30518.0,1.08214588]
[1688207989968,0.17861527,30519.0,30518.0,1.06391619]
[1688207991168,0.17861527,30519.0,30518.0,1.08214588]
[1688207992972,0.17861527,30519.0,30518.0,1.06391619]
[1688207993574,0.17861527,30519.0,30518.0,1.08214588]
[1688207995469,0.1108011,30519.0,30518.0,1.08214588]
[1688207996766,0.09384514,30519.0,30518.0,1.08214588]
[1688207996966,0.17861506,30519.0,30518.0,1.08214588]
[1688207997162,0.17861506,30519.0,30518.0,1.06391619]
[1688207997362,0.17861506,30519.0,30518.0,1.08214588]
[1688207998272,0.41958308,30519.0,30518.0,1.08205472]
[1688207998468,0.41958308,30519.0,30518.0,1.06382503]
[1688207998772,0.57216696,30519.0,30518.0,1.06382503]
[1688207999172,0.57216696,30519.0,30518.0,1.04497558]
[1688207999774,0.57216696,30519.0,30518.0,1.06382503]
[1688208000775,0.57216696,30519.0,30518.0,1.08205472]
[1688208001174,0.17861506,30519.0,30518.0,1.06382503]
[1688208001769,0.17861506,30519.0,30518.0,1.08205472]
[1688208003377,0.17861506,30519.0,30518.0,1.06382503]
[1688208003566,0.17861506,30519.0,30518.0,1.08205472]
[1688208003766,0.17861506,30519.0,30518.0,1.06382503]
[1688208004879,0.17861506,30519.0,30518.0,1.08205472]
[1688208005781,0.17861506,30519.0,30518.0,1.06382503]
[1688208005985,0.18616714,30519.0,30518.0,1.06382503]
[1688208006369,0.18616714,30519.0,30518.0,1.08205472]
[1688208009181,0.18616714,30519.0,30518.0,1.06382503]
[1688208010272,0.11835318,30519.0,30518.0,0.70302503]
[1688208011578,0.11835318,30519.0,30518.0,0.72125472]
[1688208011766,0.03358326,30519.0,30518.0,0.70302503]
[1688208011970,0.18616747,30519.0,30518.0,0.70302503]
[1688208013784,0.11835318,30519.0,30518.0,0.70302503]
[1688208013984,0.11835318,30519.0,30518.0,0.70295437]
[1688208016782,0.10139876,30519.0,30518.0,0.70295437]
[1688208017083,0.18616868,30519.0,30518.0,0.68410492]
[1688208017483,0.18616868,30519.0,30518.0,0.70295437]
[1688208018073,0.59938558,30519.0,30518.0,0.37060492]
[1688208018274,0.53157008,30519.0,30518.0,0.37060492]
[1688208018475,0.89237008,30519.0,30518.0,0.37060492]
[1688208018671,0.96018747,30519.0,30518.0,0.37060492]
[1688208019478,0.56663557,30519.0,30518.0,0.37060492]
[1688208023893,0.56663557,30519.0,30518.0,0.36729564]
[1688208027095,0.56663557,30519.0,30518.0,0.20478504]
[1688208027387,0.56663557,30519.0,30518.0,0.36265506]
[1688208027388,0.92123557,30519.0,30518.0,0.36265506]
[1688208029491,1.31462254,30519.0,30518.0,0.36265506]
[1688208029995,1.58607938,30519.0,30518.0,0.36265506]
[1688208031496,1.58607938,30519.0,30518.0,0.33786112]
[1688208032197,1.58607938,30519.0,30518.0,0.35752312]
[1688208032993,1.58607938,30519.0,30518.0,0.35800619]
[1688208034596,1.23147938,30519.0,30518.0,0.35800619]
[1688208035796,0.83809241,30519.0,30518.0,0.35800619]
[1688208035997,0.83809241,30519.0,30518.0,0.35752312]
[1688208036800,0.83332461,30519.0,30518.0,0.35752312]
[1688208037098,0.56186777,30519.0,30518.0,0.35752312]
[1688208037505,0.55908349,30519.0,30518.0,0.35752312]
[1688208037898,0.55908349,30519.0,30518.0,0.33147312]
[1688208038202,0.55908349,30519.0,30518.0,0.26137675]
[1688208040098,0.55908349,30519.0,30518.0,0.26185963]
[1688208041202,0.55908349,30519.0,30518.0,0.24296302]
[1688208041901,0.55908349,30519.0,30518.0,0.22375669]
[1688208042815,0.55908349,30519.0,30518.0,0.22060546]
[1688208049013,0.55908349,30519.0,30518.0,0.22012258]
[1688208050113,0.55908349,30519.0,30518.0,0.22060545]
[1688208050716,0.95247046,30519.0,30518.0,0.22060545]
[1688208051111,0.95247046,30519.0,30518.0,0.22012258]
[1688208051307,1.2239273,30519.0,30518.0,0.22012258]
[1688208051906,1.5785273,30519.0,30518.0,0.374262]
[1688208052615,1.30707046,30519.0,30518.0,0.374262]
[1688208053019,1.30707046,30519.0,30518.0,0.37474487]
[1688208054622,1.30407046,30519.0,30518.0,0.37474487]
[1688208055524,1.30407046,30519.0,30518.0,0.34617661]
[1688208055825,1.30407046,30519.0,30518.0,0.353488]
[1688208056124,1.30407046,30519.0,30518.0,0.35393654]
[1688208058427,0.91068349,30519.0,30518.0,0.35393654]
[1688208060413,0.91068349,30519.0,30518.0,0.32790725]
[1688208068032,0.91068349,30519.0,30518.0,0.32481617]
[1688208069029,0.91068349,30519.0,30518.0,0.30515417]
[1688208069224,0.91068349,30519.0,30518.0,0.27928417]
[1688208070535,1.0,30516.0,30515.0,0.6643]
[1688208070723,2.28121978,30516.0,30515.0,0.3546]
[1688208071134,2.28121978,30516.0,30515.0,0.35501903]
[1688208071528,2.55267662,30516.0,30515.0,0.35501903]
[1688208071723,2.65440706,30516.0,30515.0,0.35501903]
[1688208073233,2.15911215,30516.0,30515.0,0.35501903]
[1688208074138,2.15911215,30516.0,30515.0,0.35518664]
[1688208074743,2.15911215,30516.0,30515.0,0.00058664]
[1688208075042,2.15911215,30516.0,30514.0,0.374269]
[1688208075343,0.44371215,30515.0,30514.0,0.3742024]
[1688208075530,0.44371215,30515.0,30514.0,0.3546]
[1688208076236,0.44371215,30515.0,30514.0,0.6603]
[1688208077140,0.44371215,30515.0,30514.0,0.66096774]
[1688208077644,0.44371215,30515.0,30514.0,0.35526774]
[1688208077836,0.79831215,30515.0,30514.0,0.00066774]
[1688208078035,0.79831215,30515.0,30513.0,0.019669]
[1688208078238,0.43936992,30514.0,30512.0,0.35536755]
[1688208078438,0.80288639,30513.0,30512.0,0.35536755]
[1688208078641,0.88765631,30513.0,30512.0,0.35536755]
[1688208079042,0.88765631,30513.0,30512.0,0.3559033]
[1688208079345,0.88765631,30513.0,30512.0,0.3067273]
[1688208079733,0.88765631,30513.0,30512.0,0.3263973]
[1688208080249,1.0,30511.0,30510.0,0.371271]
[1688208080547,1.0,30511.0,30510.0,0.65667608]
[1688208080548,1.52687413,30511.0,30510.0,0.65667608]
[1688208080756,1.52687413,30511.0,30510.0,0.57100035]
[1688208081039,1.52687413,30511.0,30510.0,0.56866137]
[1688208081232,1.79833097,30511.0,30510.0,0.56866137]
[1688208082049,1.79833097,30511.0,30510.0,0.54899037]
[1688208082240,2.09129776,30511.0,30510.0,0.33615778]
[1688208082539,2.09129776,30511.0,30510.0,0.00485778]
[1688208082744,2.09129776,30511.0,30510.0,0.00078067]
[1688208083134,2.09129776,30511.0,30508.0,0.3113]
[1688208083340,0.735072,30509.0,30508.0,0.3113]
[1688208083847,0.81984192,30509.0,30508.0,0.3113]
[1688208084045,0.81984192,30509.0,30508.0,0.31208591]
[1688208084546,0.81984192,30509.0,30508.0,0.33175891]
[1688208085641,0.81984192,30509.0,30508.0,0.31208591]
[1688208085952,0.81984192,30509.0,30508.0,0.33175891]
[1688208086246,1.06239069,30509.0,30508.0,0.33175891]
[1688208088256,1.14718698,30509.0,30508.0,0.33175891]
[1688208088450,0.81986829,30509.0,30508.0,0.33175891]
[1688208088851,0.80019629,30509.0,30508.0,0.33175891]
[1688208089249,0.81986729,30509.0,30508.0,0.33175891]
[1688208090151,0.81986729,30509.0,30508.0,0.33162571]
[1688208091163,0.81986729,30509.0,30508.0,0.325307]
[1688208091362,0.81986729,30509.0,30508.0,0.29431155]
[1688208091657,1.14166729,30509.0,30508.0,0.28976057]
[1688208091854,1.14166729,30509.0,30508.0,0.26706639]
[1688208092061,1.63584789,30509.0,30508.0,0.28673939]
[1688208092457,1.63584789,30509.0,30508.0,0.29094088]
[1688208092962,1.66206943,30509.0,30508.0,0.29094088]
[1688208093163,1.93352627,30509.0,30508.0,0.29094088]
[1688208095954,2.1757726,30509.0,30508.0,0.29094088]
[1688208098665,1.84872998,30509.0,30508.0,0.29094088]
[1688208099253,1.91534767,30509.0,30508.0,0.29094088]
[1688208099752,2.0,30505.0,30504.0,0.019674]
[1688208099957,2.374075,30505.0,30504.0,0.02781667]
[1688208100558,2.374075,30505.0,30504.0,0.00167667]
[1688208100757,2.6116072,30505.0,30504.0,0.019675]
[1688208100959,2.6116072,30505.0,30504.0,0.02628701]
[1688208101155,3.37401311,30505.0,30504.0,0.00661201]
[1688208101351,3.86612883,30505.0,30504.0,0.02628701]
[1688208101547,4.19305306,30505.0,30504.0,0.019675]
[1688208101757,4.19305306,30505.0,30504.0,0.00936617]
[1688208101959,4.19305306,30505.0,30504.0,0.019675]
[1688208102257,4.10824715,30505.0,30504.0,0.01645282]
[1688208103459,3.86613345,30505.0,30504.0,0.01645282]
[1688208103761,3.86613345,30505.0,30503.0,0.019676]
[1688208103957,0.43941053,30504.0,30502.0,0.379031]
[1688208104164,0.019676,30504.0,30503.0,0.01092405]
[1688208104358,0.6966192,30504.0,30503.0,0.01092405]
[1688208104660,0.6966192,30504.0,30503.0,0.019676]
[1688208105361,0.6966192,30504.0,30503.0,0.01082271]
[1688208105558,0.6966192,30504.0,30503.0,0.019676]
[1688208105766,0.459087,30504.0,30503.0,0.019676]
[1688208106256,0.459087,30504.0,30502.0,0.32]
[1688208106465,0.459087,30503.0,30502.0,0.30395884]
[1688208106849,0.952675,30503.0,30502.0,0.30395884]
[1688208107049,0.952675,30503.0,30501.0,0.02016873]
[1688208107254,1.06168291,30502.0,30501.0,0.02016873]
[1688208107668,2.0,30501.0,30500.0,0.420193]
[1688208107862,2.0,30501.0,30500.0,0.065593]
[1688208107863,2.68136357,30501.0,30500.0,0.065593]
[1688208108165,2.70104057,30501.0,30499.0,0.01822916]
[1688208108367,0.3546,30500.0,30499.0,0.00884545]
[1688208108560,0.374278,30500.0,30499.0,0.00884545]
[1688208109654,0.374278,30500.0,30497.0,0.376]
[1688208109963,0.7154,30498.0,30497.0,0.36289044]
[1688208110259,0.735079,30498.0,30497.0,0.36289044]
[1688208110860,0.374279,30498.0,30497.0,0.36289044]
[1688208111957,0.374279,30498.0,30497.0,0.33008]
[1688208112167,0.374279,30498.0,30497.0,0.31826308]
[1688208112367,1.0,30496.0,30495.0,0.059044]
[1688208112663,1.7154,30496.0,30495.0,0.059044]
[1688208113061,1.3608,30496.0,30495.0,0.059044]
[1688208113268,1.7154,30496.0,30495.0,0.059044]
[1688208113672,1.7154,30496.0,30495.0,0.01968]
[1688208114864,1.3546,30496.0,30495.0,0.01968]
[1688208115063,1.3546,30496.0,30495.0,0.37228]
[1688208115467,1.3546,30496.0,30495.0,0.73308]
[1688208115668,1.3546,30496.0,30495.0,1.06238]
[1688208115869,1.3546,30496.0,30495.0,1.06618647]
[1688208116175,1.3546,30496.0,30495.0,1.08503592]
[1688208116855,1.3516,30496.0,30495.0,1.08503592]
[1688208117268,0.3516,30496.0,30495.0,1.08503592]
[1688208117759,0.3516,30496.0,30495.0,1.10326561]
[1688208118168,0.3516,30496.0,30495.0,1.08503592]
[1688208118367,0.3516,30496.0,30495.0,0.72423592]
[1688208120164,0.3516,30496.0,30495.0,0.70531987]
[1688208121168,1.371279,30496.0,30495.0,0.70531987]
[1688208121574,1.374279,30496.0,30495.0,0.35271987]
[1688208122174,1.735079,30496.0,30495.0,0.33310647]
[1688208122373,1.735079,30496.0,30495.0,0.17177951]
[1688208122564,1.735079,30496.0,30492.0,0.73793788]
[1688208122773,1.3516,30493.0,30492.0,0.31343255]
[1688208122973,1.371281,30493.0,30489.0,0.722]
[1688208123263,1.019681,30493.0,30491.0,0.00990135]
[1688208123463,0.37428,30492.0,30491.0,0.00990135]
[1688208124665,0.37428,30492.0,30491.0,0.37008692]
[1688208125274,1.37428,30492.0,30491.0,0.37008692]
[1688208128670,1.37428,30492.0,30491.0,0.36018557]
[1688208129174,1.37428,30492.0,30491.0,0.37986657]
[1688208129482,1.37428,30492.0,30491.0,0.36018557]
[1688208129667,1.0,30489.0,30488.0,0.02017593]
[1688208129865,1.0,30489.0,30486.0,0.3608]
[1688208129866,1.0,30488.0,30486.0,0.3608]
[1688208130079,0.3546,30487.0,30486.0,0.03654913]
[1688208130280,0.3546,30487.0,30485.0,0.019685]
[1688208130281,0.374285,30487.0,30485.0,0.019685]
[1688208130573,0.374285,30486.0,30485.0,0.019685]
[1688208130969,0.368441,30486.0,30485.0,0.019685]
[1688208132576,0.019685,30486.0,30485.0,0.374285]
[1688208133171,1.403813,30488.0,30485.0,0.39313445]
[1688208133377,1.403813,30488.0,30487.0,0.735084]
[1688208133984,1.403813,30488.0,30487.0,0.374284]
[1688208134370,0.3546,30488.0,30487.0,0.374284]
[1688208134675,1.0,30489.0,30487.0,0.741684]
[1688208134877,1.0,30489.0,30488.0,0.39167914]
[1688208135081,1.0,30489.0,30488.0,0.41136314]
[1688208135280,1.02585116,30489.0,30488.0,0.41136314]
[1688208137372,1.02585116,30489.0,30488.0,0.41796314]
[1688208137578,1.02585116,30489.0,30488.0,0.77797706]
[1688208139373,0.00049199,30492.0,30488.0,0.77797706]
[1688208139587,0.00049199,30492.0,30491.0,0.7154]
[1688208139792,0.00049199,30492.0,30491.0,0.735082]
[1688208140087,0.00049199,30492.0,30491.0,0.73997901]
[1688208140286,0.02017299,30492.0,30491.0,0.77705815]
[1688208142086,0.04703005,30492.0,30491.0,0.77705815]
[1688208142386,0.02017299,30492.0,30491.0,0.77705815]
[1688208142788,0.00049199,30492.0,30491.0,0.77705815]
[1688208143197,0.02017299,30492.0,30491.0,0.77705815]
[1688208144194,0.00049199,30492.0,30491.0,0.77705815]
[1688208144582,0.00049199,30492.0,30491.0,0.77505456]
[1688208148695,0.801577,30500.0,30492.0,0.01884945]
[1688208148995,0.329577,30500.0,30499.0,0.7154]
[1688208149183,0.329577,30500.0,30499.0,0.735077]
[1688208149184,0.019677,30500.0,30499.0,0.735077]
[1688208149496,0.51693711,30500.0,30499.0,0.75330669]
[1688208149702,0.48923711,30500.0,30499.0,0.75330669]
[1688208149890,0.32773836,30503.0,30499.0,0.75330669]
[1688208149891,0.0004918,30503.0,30499.0,0.75330669]
[1688208150079,0.0004918,30503.0,30502.0,0.735075]
[1688208150285,0.0004252,30503.0,30502.0,0.735075]
[1688208150780,0.0004252,30503.0,30502.0,0.75330469]
[1688208150995,0.0004252,30503.0,30502.0,0.77215414]
[1688208152498,0.00661901,30503.0,30502.0,0.77215414]
[1688208154187,0.02567825,30506.0,30503.0,0.05]
[1688208154495,1.7819,30510.0,30506.0,0.3526]
[1688208154496,1.10914656,30510.0,30506.0,0.3526]
[1688208154691,0.32724656,30510.0,30509.0,0.7154]
[1688208154884,0.39507883,30510.0,30509.0,0.73507]
[1688208155192,0.39507883,30510.0,30509.0,0.77214914]
[1688208155193,0.5828443,30510.0,30509.0,0.77214914]
[1688208156208,0.66763469,30510.0,30509.0,0.77214914]
[1688208159509,0.68730369,30510.0,30509.0,0.73507]
[1688208159810,1.04190369,30510.0,30509.0,0.73507]
[1688208161203,1.04190369,30510.0,30509.0,0.75391945]
[1688208161412,1.04190369,30510.0,30509.0,0.73507]
[1688208161704,1.04690395,30510.0,30509.0,0.37427]
[1688208163000,1.28835782,30510.0,30509.0,0.37427]
[1688208163514,0.96211356,30510.0,30509.0,0.39311945]
[1688208163806,0.89428129,30510.0,30509.0,0.39311945]
[1688208164601,0.53968129,30510.0,30509.0,0.39311945]
[1688208165101,0.53948149,30510.0,30509.0,0.37427]
[1688208166611,0.53948149,30510.0,30509.0,0.39311945]
[1688208167099,0.53948149,30510.0,30509.0,0.37427]
[1688208170017,0.51981249,30510.0,30509.0,0.37427]
[1688208170314,0.51981249,30510.0,30509.0,0.39311945]
[1688208170914,0.51981249,30510.0,30509.0,0.37427]
[1688208171216,0.58764684,30510.0,30509.0,0.37427]
[1688208171614,0.60731584,30510.0,30509.0,0.37427]
[1688208172703,0.58764684,30510.0,30509.0,0.37427]
[1688208173017,0.60731684,30510.0,30509.0,0.37427]
[1688208173811,0.60731684,30510.0,30509.0,0.39311945]
[1688208174221,0.60731684,30510.0,30509.0,0.37427]
[1688208175115,1.32271684,30510.0,30509.0,0.01967]
[1688208176007,1.38778768,30510.0,30509.0,0.01967]
[1688208178217,1.02698768,30510.0,30509.0,0.01967]
[1688208178607,0.95915333,30510.0,30509.0,0.01967]
[1688208179515,0.95915333,30510.0,30509.0,0.01960919]
[1688208180316,1.31995333,30510.0,30509.0,0.01960919]
[1688208181617,1.38779199,30510.0,30509.0,0.01960919]
[1688208181815,0.95915333,30510.0,30509.0,0.01960919]
[1688208182421,0.89408249,30510.0,30509.0,0.01960919]
[1688208183126,0.96191966,30510.0,30509.0,0.01960919]
[1688208184721,0.96191966,30510.0,30509.0,0.37220919]
[1688208188122,0.58764966,30510.0,30509.0,0.39305864]
[1688208188524,0.58764966,30510.0,30509.0,0.41128833]
[1688208189325,0.58764966,30510.0,30509.0,0.39305864]
[1688208189718,0.58764966,30510.0,30509.0,0.41128833]
[1688208192133,0.58764966,30510.0,30509.0,0.39305864]
[1688208193540,0.99945516,30510.0,30509.0,0.39305864]
[1688208193728,0.67243901,30510.0,30509.0,0.39305864]
[1688208193924,0.67243901,30510.0,30509.0,0.37420919]
[1688208196437,0.67243901,30510.0,30509.0,0.39305864]
[1688208197341,0.67243901,30510.0,30509.0,0.41128833]
[1688208197534,0.69211001,30510.0,30509.0,0.41128833]
[1688208197839,0.69211001,30510.0,30509.0,0.39305864]
[1688208198433,0.69211001,30510.0,30509.0,0.41128833]
[1688208199028,0.67243901,30510.0,30509.0,0.41128833]
[1688208199841,0.67243901,30510.0,30509.0,0.39305864]
[1688208200041,0.67243901,30510.0,30509.0,0.41128833]
[1688208200844,0.67243901,30510.0,30509.0,0.39305864]
[1688208202741,0.67243901,30510.0,30509.0,0.41128833]
[1688208202940,0.67243901,30510.0,30509.0,0.39305864]
[1688208203645,0.67243901,30510.0,30509.0,0.73500919]
[1688208204229,0.67243901,30510.0,30509.0,0.37420919]
[1688208206640,0.69210901,30510.0,30509.0,0.37420919]
[1688208206840,0.69210901,30510.0,30509.0,0.37400584]
[1688208207042,1.04670901,30510.0,30509.0,0.01940584]
[1688208207238,0.97887184,30510.0,30509.0,0.01940584]
[1688208207937,1.04670745,30510.0,30509.0,0.01940584]
[1688208212350,1.97887184,30510.0,30509.0,0.01940584]
[1688208212550,2.08062512,30510.0,30509.0,0.01940584]
[1688208212850,2.1484609,30510.0,30509.0,0.01940584]
[1688208213243,2.38052698,30510.0,30509.0,0.01940584]
[1688208214746,2.38052698,30510.0,30509.0,0.37400584]
[1688208214948,2.36085698,30510.0,30509.0,0.37400584]
[1688208215556,1.36085698,30510.0,30509.0,0.37400584]
[1688208215749,1.02703762,30510.0,30509.0,0.37400584]
[1688208216250,1.02703762,30510.0,30509.0,0.39285529]
[1688208216955,1.02403762,30510.0,30509.0,0.39105529]
[1688208217753,1.02403762,30510.0,30509.0,0.37220584]
[1688208219847,1.02386969,30510.0,30509.0,0.37220584]
[1688208222055,1.02386969,30510.0,30509.0,0.34592384]
[1688208222249,1.02386969,30510.0,30509.0,0.36559384]
[1688208224658,0.67226969,30510.0,30509.0,0.37127]
[1688208226460,0.90433577,30510.0,30509.0,0.37127]
[1688208229055,0.92400677,30510.0,30509.0,0.37127]
[1688208231259,1.02575937,30510.0,30509.0,0.37127]
[1688208231766,0.92400677,30510.0,30509.0,0.37127]
[1688208231955,1.02575937,30510.0,30509.0,0.37127]
[1688208232665,1.41817875,30510.0,30509.0,0.37127]
[1688208233555,1.41817775,30510.0,30509.0,0.37127]
[1688208233752,1.41817775,30510.0,30509.0,0.36179001]
[1688208234168,1.39850775,30510.0,30509.0,0.36179001]
[1688208234559,1.36068837,30510.0,30509.0,0.36179001]
[1688208237572,1.38035837,30510.0,30509.0,0.36179001]
[1688208238972,1.27860577,30510.0,30509.0,0.36179001]
[1688208241472,1.27860577,30510.0,30509.0,0.38063946]
[1688208241872,1.04653969,30510.0,30509.0,0.38063946]
[1688208243372,1.02686969,30510.0,30509.0,0.38063946]
[1688208243779,1.02686969,30510.0,30509.0,0.74143946]
[1688208244081,1.02686969,30510.0,30509.0,0.72259001]
[1688208244675,0.67226969,30510.0,30509.0,0.74143946]
[1688208247084,0.67226969,30510.0,30509.0,0.75966915]
[1688208248788,0.67226969,30510.0,30509.0,0.74143946]
[1688208248987,0.67226969,30510.0,30509.0,0.72259001]
[1688208249484,0.67226969,30510.0,30509.0,0.75966915]
[1688208250378,0.67226969,30510.0,30509.0,0.74143946]
[1688208254880,0.67226969,30510.0,30509.0,0.72259001]
[1688208255593,0.67226969,30510.0,30509.0,0.74143946]
[1688208257882,0.67226969,30510.0,30509.0,0.75966915]